fUST/lending_fUST_20240828
["ID","MTS","AMOUNT","RATE_DAILY","PERIOD"]
[336334668,1724778672058,-571.48,0.00012876,2]
[336334669,1724778672068,-452.172409,0.00012876,2]
[336334670,1724778672079,-166.475584,0.00012876,2]
[336334671,1724778672089,-1455.41,0.00012876,2]
[336334672,1724778672100,-452.172409,0.00012876,2]
[336334673,1724778672110,-1553.01,0.00012876,2]
[336334674,1724778672120,-504.21,0.00012876,2]
[336334675,1724778672130,-500.0,0.00012876,2]
[336334676,1724778672140,-552.2,0.00012876,2]
[336334677,1724778672150,-500.0,0.00012876,2]
[336334678,1724778672159,-500.0,0.00012876,2]
[336334679,1724778672169,-500.0,0.00012876,2]
[336334680,1724778672179,-500.0,0.00012876,2]
[336334681,1724778672189,-500.0,0.00012876,2]
[336334682,1724778672200,-675.45,0.00012876,2]
[336334683,1724778672211,-500.0,0.00012876,2]
[336334684,1724778672222,-500.0,0.00012876,2]
[336334685,1724778672232,-500.0,0.00012876,2]
[336334686,1724778672242,-500.0,0.00012876,2]
[336334687,1724778672252,-500.0,0.00012876,2]
[336334688,1724778672263,-582.89,0.00012876,2]
[336334689,1724778672273,-500.0,0.00012876,2]
[336334690,1724778672282,-571.89,0.00012876,2]
[336334691,1724778672292,-500.0,0.00012876,2]
[336334692,1724778672302,-500.0,0.00012876,2]
[336334693,1724778672311,-500.0,0.00012876,2]
[336334694,1724778672321,-500.0,0.00012876,2]
[336334695,1724778672331,-500.0,0.00012876,2]
[336334696,1724778672340,-500.0,0.00012876,2]
[336334697,1724778672349,-500.0,0.00012876,2]
[336334698,1724778672359,-500.0,0.00012876,2]
[336334699,1724778672368,-500.0,0.00012876,2]
[336334700,1724778672378,-500.0,0.00012876,2]
[336334701,1724778672390,-549.86099431,0.00012876,2]
[336334702,1724778672404,-477.28,0.00012876,2]
[336334703,1724778672414,-500.0,0.00012876,2]
[336334704,1724778672424,-500.0,0.00012876,2]
[336334705,1724778672434,-773.4,0.00012876,2]
[336334706,1724778672444,-500.0,0.00012876,2]
[336334707,1724778672454,-500.0,0.00012876,2]
[336334708,1724778672463,-500.0,0.00012876,2]
[336334709,1724778672474,-500.0,0.00012876,2]
[336334710,1724778672482,-500.0,0.00012876,2]
[336334711,1724778672492,-500.0,0.00012876,2]
[336334712,1724778672502,-500.0,0.00012876,2]
[336334713,1724778672514,-500.0,0.00012876,2]
[336334714,1724778672524,-552.32,0.00012876,2]
[336334715,1724778672533,-563.4,0.00012876,2]
[336334716,1724778672655,-500.0,0.00012876,2]
[336334717,1724778672666,-669.12,0.00012876,2]
[336334718,1724778672676,-500.0,0.00012876,2]
[336334719,1724778672686,-500.0,0.00012876,2]
[336334720,1724778672696,-500.0,0.00012876,2]
[336334721,1724778672706,-500.0,0.00012876,2]
[336334722,1724778672715,-500.0,0.00012876,2]
[336334723,1724778672725,-500.0,0.00012876,2]
[336334724,1724778672735,-153.0,0.00012897,2]
[336334725,1724778672745,-22525.08124429,0.00012898,2]
[336334726,1724778672755,-151.0,0.00012898,2]
[336334727,1724778672769,-151.0,0.00012898,2]
[336334728,1724778672778,-415.4601758,0.000129,2]
[336334729,1724778672787,-195.51486207,0.000129,2]
[336334730,1724778672796,-168.929446,0.00012901,2]
[336334731,1724778672806,-180.746812,0.00012901,2]
[336334732,1724778672816,-168.931042,0.00012901,2]
[336334733,1724778672827,-330.404938,0.00012901,2]
[336334734,1724778672837,-352.279876,0.00012901,2]
[336334735,1724778672846,-493.73689206,0.00012971,2]
[336334736,1724778672856,-8850.44161835,0.00012971,2]
[336334737,1724778672866,-465.03227504,0.0001298,2]
[336334738,1724778672875,-2714.82142664,0.00012985,2]
[336334739,1724778672885,-404.68183909,0.00012985,2]
[336334740,1724778672894,-2284.37692518,0.00012985,3]
[336334741,1724778672904,-151.0,0.00012989,2]
[336334742,1724778672913,-151.0,0.00012989,2]
[336334743,1724778672922,-151.0,0.00012989,2]
[336334744,1724778672932,-151.0,0.00012989,2]
[336334745,1724778672942,-154.72922386,0.00012991,2]
[336334746,1724778672952,-535.28855475,0.00012991,2]
[336334747,1724778672961,-154.74467129,0.00012991,2]
[336334748,1724778672971,-288.5284708,0.00012999,2]
[336334749,1724778672981,-929.78606916,0.00012999,2]
[336334750,1724778672991,-234.81082753,0.00012999,2]
[336334751,1724778673000,-154.69833824,0.00012999,2]
[336334752,1724778673013,-154.72922386,0.00012999,2]
[336334753,1724778673022,-912.46736491,0.00012999,2]
[336334754,1724778673032,-289.90074767,0.00012999,2]
[336334755,1724778673042,-209.81980082,0.00012999,2]
[336334756,1724778673051,-154.86014468,0.00012999,2]
[336334757,1724778673060,-863.22054056,0.00013,2]
[336334758,1724778673070,-154.75493864,0.00013,2]
[336334759,1724778673079,-1000.0,0.00013,13]
[336334760,1724778673089,-1000.0,0.00013,2]
[336334761,1724778673099,-4418.09220752,0.00013,2]
[336334762,1724778673108,-337.66499611,0.00013,2]
[336334763,1724778673117,-8296.70794457,0.00013,2]
[336334764,1724778675078,-330.45793268,0.00010958,2]
[336334765,1724778675089,-508.0,0.00011505,2]
[336334766,1724778675099,-500.0,0.00012328,2]
[336334767,1724778675109,-500.0,0.00012602,2]
[336334768,1724778675119,-500.0,0.00012876,2]
[336334769,1724778675129,-173.15648024,0.00012991,2]
[336334770,1724778675140,-9324.52820608,0.00013,2]
[336334771,1724778675159,-26966.71384935,0.00013,2]
[336334772,1724778675171,-150.112233,0.00013,2]
[336334773,1724778675182,-150.112233,0.00013,2]
[336334774,1724778675192,-150.112233,0.00013,2]
[336334775,1724778675201,-151.0,0.00013,2]
[336334776,1724778675210,-150.112233,0.00013,2]
[336334777,1724778675220,-187.693156,0.00013,2]
[336334778,1724778675229,-187.693156,0.00013,2]
[336334779,1724778675240,-151.0,0.00013,2]
[336334780,1724778675250,-150.112233,0.00013,2]
[336334781,1724778675260,-151.0,0.00013,2]
[336334782,1724778675274,-151.0,0.00013,2]
[336334783,1724778675284,-151.0,0.00013,2]
[336334784,1724778675295,-468.45755,0.00013,2]
[336334785,1724778675305,-468.45755,0.00013,2]
[336334786,1724778675315,-1017.576488,0.00013,2]
[336334787,1724778675326,-1017.576488,0.00013,2]
[336334788,1724778675338,-202.775793,0.00013,2]
[336334789,1724778675348,-202.775793,0.00013,2]
[336334790,1724778675357,-467.14723,0.00013,2]
[336334791,1724778675368,-467.14723,0.00013,2]
[336334792,1724778675380,-250.003809,0.00013,2]
[336334793,1724778675391,-250.003809,0.00013,2]
[336334794,1724778675406,-151.0,0.00013,2]
[336334795,1724778675417,-150.112233,0.00013,2]
[336334796,1724778675428,-151.0,0.00013,2]
[336334797,1724778675438,-330.18422,0.00013,2]
[336334798,1724778675449,-330.18422,0.00013,2]
[336334799,1724778675459,-151.157188,0.00013,2]
[336334800,1724778675468,-265.101884,0.00013,2]
[336334801,1724778675480,-328.092211,0.00013,2]
[336334802,1724778675491,-328.092211,0.00013,2]
[336334803,1724778675503,-151.0,0.00013,2]
[336334804,1724778675513,-201.78282285,0.00013025,2]
[336334805,1724778675522,-154.72922386,0.00013025,2]
[336334806,1724778675532,-154.71377951,0.00013025,2]
[336334807,1724778675541,-343.02009074,0.00013025,2]
[336334808,1724778675550,-154.76011564,0.00013025,2]
[336334809,1724778675560,-308.87016453,0.00013051,2]
[336334810,1724778675570,-544.46212792,0.00013051,2]
[336334811,1724778675580,-308.87016453,0.00013051,2]
[336334812,1724778675589,-330.404938,0.00013063,2]
[336334813,1724778675599,-352.279876,0.00013063,2]
[336334814,1724778675608,-300.761323,0.000131,4]
[336334815,1724778675618,-500.0,0.00013149,2]
[336334816,1724778675627,-554.65,0.00013149,2]
[336334817,1724778675637,-500.0,0.00013149,2]
[336334818,1724778675647,-1416.19,0.00013149,2]
[336334819,1724778675657,-500.0,0.00013149,2]
[336334820,1724778675667,-500.0,0.00013149,2]
[336334821,1724778675676,-1498.44,0.00013149,2]
[336334822,1724778675685,-500.0,0.00013149,2]
[336334823,1724778675695,-500.0,0.00013149,2]
[336334824,1724778675707,-500.0,0.00013149,2]
[336334825,1724778675717,-500.0,0.00013149,2]
[336334826,1724778675726,-640.16078109,0.00013149,2]
[336334827,1724778675736,-1373.05,0.00013149,2]
[336334828,1724778675745,-1354.84,0.00013149,2]
[336334829,1724778675754,-500.0,0.0001315,2]
[336334830,1724778675763,-500.0,0.0001315,2]
[336334831,1724778675772,-500.0,0.0001315,2]
[336334832,1724778675781,-541.93,0.0001315,2]
[336334833,1724778675791,-500.0,0.0001315,2]
[336334834,1724778675800,-500.0,0.0001315,2]
[336334835,1724778675810,-500.0,0.0001315,2]
[336334836,1724778675820,-500.0,0.0001315,2]
[336334837,1724778675829,-500.0,0.0001315,2]
[336334838,1724778675839,-500.0,0.0001315,2]
[336334839,1724778675848,-240.72632631,0.0001315,2]
[336334840,1724778675857,-500.0,0.0001315,2]
[336334841,1724778675866,-500.0,0.0001315,2]
[336334842,1724778675876,-500.0,0.0001315,2]
[336334843,1724778675885,-601.05,0.0001315,2]
[336334844,1724778675895,-648.24,0.0001315,2]
[336334845,1724778675904,-500.0,0.0001315,2]
[336334846,1724778675914,-500.0,0.0001315,2]
[336334847,1724778675923,-151.0,0.0001315,2]
[336334848,1724778675932,-500.0,0.0001315,2]
[336334849,1724778675941,-500.0,0.0001315,2]
[336334850,1724778675950,-500.0,0.0001315,2]
[336334851,1724778675959,-151.0,0.0001315,2]
[336334852,1724778675969,-500.0,0.0001315,2]
[336334853,1724778675979,-500.0,0.0001315,2]
[336334854,1724778675990,-417.592714,0.0001315,2]
[336334855,1724778676000,-305.5441109,0.0001315,2]
[336334856,1724778676012,-417.592714,0.0001315,2]
[336334857,1724778676022,-500.0,0.0001315,2]
[336334858,1724778676032,-611.08,0.0001315,2]
[336334859,1724778676043,-500.0,0.0001315,2]
[336334860,1724778676053,-500.0,0.0001315,2]
[336334861,1724778676063,-500.0,0.0001315,2]
[336334862,1724778676073,-500.0,0.0001315,2]
[336334863,1724778676085,-500.0,0.0001315,2]
[336334864,1724778676096,-528.18,0.0001315,2]
[336334865,1724778676106,-500.0,0.0001315,2]
[336334866,1724778676118,-500.0,0.0001315,2]
[336334867,1724778676128,-500.0,0.0001315,2]
[336334868,1724778676137,-500.0,0.0001315,2]
[336334869,1724778676146,-500.0,0.0001315,2]
[336334870,1724778676156,-500.0,0.0001315,2]
[336334871,1724778676165,-500.0,0.0001315,2]
[336334872,1724778676174,-151.0,0.0001315,2]
[336334873,1724778676185,-500.0,0.0001315,2]
[336334874,1724778676195,-500.0,0.0001315,2]
[336334875,1724778676205,-500.0,0.0001315,2]
[336334876,1724778676215,-500.0,0.0001315,2]
[336334877,1724778676225,-500.0,0.0001315,2]
[336334878,1724778676234,-1350.79,0.0001315,2]
[336334879,1724778676245,-578.974458,0.0001315,2]
[336334880,1724778676254,-500.0,0.0001315,2]
[336334881,1724778676264,-578.974458,0.0001315,2]
[336334882,1724778676273,-500.0,0.0001315,2]
[336334883,1724778676283,-607.90773646,0.0001315,2]
[336334884,1724778676294,-655.36,0.0001315,2]
[336334885,1724778676304,-500.0,0.0001315,2]
[336334886,1724778676314,-500.0,0.0001315,2]
[336334887,1724778676323,-644.39,0.0001315,2]
[336334888,1724778676333,-500.0,0.0001315,2]
[336334889,1724778676342,-420.40481264,0.0001315,2]
[336334890,1724778676352,-584.14,0.0001315,2]
[336334891,1724778676362,-500.0,0.0001315,2]
[336334892,1724778676373,-581.73,0.0001315,2]
[336334893,1724778676383,-500.0,0.0001315,2]
[336334894,1724778676394,-500.0,0.0001315,2]
[336334895,1724778676409,-517.38,0.0001315,2]
[336334896,1724778676418,-275.56946795,0.0001315,2]
[336334897,1724778676428,-500.0,0.0001315,2]
[336334898,1724778676439,-500.0,0.0001315,2]
[336334899,1724778676448,-151.0,0.0001315,2]
[336334900,1724778676459,-500.0,0.0001315,2]
[336334901,1724778676471,-500.0,0.0001315,2]
[336334902,1724778676480,-500.0,0.0001315,2]
[336334903,1724778676490,-151.0,0.0001315,2]
[336334904,1724778676499,-500.0,0.0001315,2]
[336334905,1724778676510,-500.0,0.0001315,2]
[336334906,1724778676521,-500.0,0.0001315,2]
[336334907,1724778676531,-668.81,0.0001315,2]
[336334908,1724778676540,-500.0,0.0001315,2]
[336334909,1724778676550,-504.88,0.0001315,2]
[336334910,1724778676560,-500.0,0.0001315,2]
[336334911,1724778676570,-500.0,0.0001315,2]
[336334912,1724778676580,-500.0,0.0001315,2]
[336334913,1724778676590,-786.34,0.0001315,2]
[336334914,1724778676600,-502.22,0.0001315,2]
[336334915,1724778676610,-500.0,0.0001315,2]
[336334916,1724778676620,-500.0,0.0001315,2]
[336334917,1724778676632,-500.0,0.0001315,2]
[336334918,1724778676642,-500.0,0.0001315,2]
[336334919,1724778676652,-272.56553318,0.0001315,2]
[336334920,1724778676662,-500.0,0.0001315,2]
[336334921,1724778676672,-500.0,0.0001315,2]
[336334922,1724778676681,-655.26,0.0001315,2]
[336334923,1724778676690,-500.0,0.0001315,2]
[336334924,1724778676700,-500.0,0.0001315,2]
[336334925,1724778676709,-500.0,0.0001315,2]
[336334926,1724778676718,-520.73441391,0.0001315,2]
[336334927,1724778676728,-553.19,0.0001315,2]
[336334928,1724778676738,-500.0,0.0001315,2]
[336334929,1724778676748,-500.0,0.0001315,2]
[336334930,1724778676758,-595.64,0.0001315,2]
[336334931,1724778676772,-500.0,0.0001315,2]
[336334932,1724778676781,-506.7,0.0001315,2]
[336334933,1724778676791,-500.0,0.0001315,2]
[336334934,1724778676800,-632.42,0.0001315,2]
[336334935,1724778676809,-500.0,0.0001315,2]
[336334936,1724778676819,-500.0,0.0001315,2]
[336334937,1724778676829,-702.68,0.0001315,2]
[336334938,1724778676839,-512.06,0.0001315,2]
[336334939,1724778676849,-500.0,0.0001315,2]
[336334940,1724778676859,-500.0,0.0001315,2]
[336334941,1724778676868,-500.0,0.0001315,2]
[336334942,1724778676877,-500.0,0.0001315,2]
[336334943,1724778676886,-500.0,0.0001315,2]
[336334944,1724778676896,-567.1,0.0001315,2]
[336334945,1724778676906,-500.0,0.0001315,2]
[336334946,1724778676915,-151.0,0.0001315,2]
[336334947,1724778676925,-424.1,0.0001315,2]
[336334948,1724778676935,-500.0,0.0001315,2]
[336334949,1724778676945,-500.0,0.0001315,2]
[336334950,1724778676955,-156.421141,0.0001315,2]
[336334951,1724778676965,-764.19,0.0001315,2]
[336334952,1724778676974,-500.0,0.0001315,2]
[336334953,1724778676984,-500.0,0.0001315,2]
[336334954,1724778676994,-500.0,0.0001315,2]
[336334955,1724778677004,-500.0,0.0001315,2]
[336334956,1724778677018,-500.0,0.0001315,2]
[336334957,1724778677028,-500.0,0.0001315,2]
[336334958,1724778677038,-500.0,0.0001315,2]
[336334959,1724778677047,-500.0,0.0001315,2]
[336334960,1724778677056,-500.0,0.0001315,2]
[336334961,1724778677066,-500.0,0.0001315,2]
[336334962,1724778677075,-500.0,0.0001315,2]
[336334963,1724778677084,-500.0,0.0001315,2]
[336334964,1724778677094,-582.05,0.0001315,2]
[336334965,1724778677104,-500.0,0.0001315,2]
[336334966,1724778677113,-507.42,0.0001315,2]
[336334967,1724778677123,-500.0,0.0001315,2]
[336334968,1724778677133,-500.0,0.0001315,2]
[336334969,1724778677143,-500.0,0.0001315,2]
[336334970,1724778677152,-500.0,0.0001315,2]
[336334971,1724778677162,-500.0,0.0001315,2]
[336334972,1724778677172,-561.83,0.0001315,2]
[336334973,1724778677301,-500.0,0.0001315,2]
[336334974,1724778677312,-212.09393292,0.0001315,2]
[336334975,1724778677322,-1107.43,0.0001315,2]
[336334976,1724778677332,-624.0,0.0001315,2]
[336334977,1724778677342,-500.0,0.0001315,2]
[336334978,1724778677352,-500.0,0.0001315,2]
[336334979,1724778677361,-500.0,0.0001315,2]
[336334980,1724778677370,-598.29,0.0001315,2]
[336334981,1724778677379,-500.0,0.0001315,2]
[336334982,1724778677389,-2608.77,0.0001315,2]
[336334983,1724778677401,-500.0,0.0001315,2]
[336334984,1724778677410,-500.0,0.0001315,2]
[336334985,1724778677420,-2774.65,0.0001315,2]
[336334986,1724778677429,-3163.65,0.0001315,2]
[336334987,1724778677441,-500.0,0.0001315,2]
[336334988,1724778677450,-1238.61,0.0001315,2]
[336334989,1724778677460,-500.0,0.0001315,2]
[336334990,1724778677469,-573.0,0.0001315,2]
[336334991,1724778677480,-1133.85,0.0001315,2]
[336334992,1724778677490,-500.0,0.0001315,2]
[336334993,1724778677500,-618.83,0.0001315,2]
[336334994,1724778677511,-500.0,0.0001315,2]
[336334995,1724778677524,-500.0,0.0001315,2]
[336334996,1724778677540,-231.668868,0.0001315,2]
[336334997,1724778677550,-1053.06,0.0001315,2]
[336334998,1724778677560,-231.668868,0.0001315,2]
[336334999,1724778677570,-3246.57,0.0001315,2]
[336335000,1724778677580,-500.0,0.0001315,2]
[336335001,1724778677590,-344.73,0.0001315,2]
[336335002,1724778677600,-151.0,0.0001315,2]
[336335003,1724778677610,-160.560616,0.0001315,2]
[336335004,1724778677620,-160.560616,0.0001315,2]
[336335005,1724778677631,-500.0,0.0001315,2]
[336335006,1724778677641,-500.0,0.0001315,2]
[336335007,1724778677650,-3271.43,0.0001315,2]
[336335008,1724778677662,-500.0,0.0001315,2]
[336335009,1724778677674,-676.74,0.0001315,2]
[336335010,1724778677683,-151.0,0.0001315,2]
[336335011,1724778677692,-500.0,0.0001315,2]
[336335012,1724778677701,-500.0,0.0001315,2]
[336335013,1724778677711,-500.0,0.0001315,2]
[336335014,1724778677720,-500.0,0.0001315,2]
[336335015,1724778677729,-500.0,0.0001315,2]
[336335016,1724778677739,-500.0,0.0001315,2]
[336335017,1724778677749,-459.01142,0.0001315,2]
[336335018,1724778677759,-459.01142,0.0001315,2]
[336335019,1724778677772,-1528.72,0.0001315,2]
[336335020,1724778677782,-500.0,0.0001315,2]
[336335021,1724778677793,-166.475584,0.0001315,2]
[336335022,1724778677803,-452.172409,0.0001315,2]
[336335023,1724778677813,-166.475584,0.0001315,2]
[336335024,1724778677822,-1455.41,0.0001315,2]
[336335025,1724778677832,-452.172409,0.0001315,2]
[336335026,1724778677842,-1553.01,0.0001315,2]
[336335027,1724778677851,-504.21,0.0001315,2]
[336335028,1724778677861,-500.0,0.0001315,2]
[336335029,1724778677870,-500.0,0.0001315,2]
[336335030,1724778677880,-500.0,0.0001315,2]
[336335031,1724778677890,-500.0,0.0001315,2]
[336335032,1724778677899,-500.0,0.0001315,2]
[336335033,1724778677909,-500.0,0.0001315,2]
[336335034,1724778677919,-675.45,0.0001315,2]
[336335035,1724778677928,-500.0,0.0001315,2]
[336335036,1724778677938,-500.0,0.0001315,2]
[336335037,1724778677947,-469.75858988,0.0001315,2]
[336335038,1724778677957,-500.0,0.0001315,2]
[336335039,1724778677967,-537.33972986,0.0001315,2]
[336335040,1724778677977,-582.89,0.0001315,2]
[336335041,1724778677987,-500.0,0.0001315,2]
[336335042,1724778677997,-487.660934,0.0001315,2]
[336335043,1724778678007,-487.660934,0.0001315,2]
[336335044,1724778678018,-571.89,0.0001315,2]
[336335045,1724778678028,-500.0,0.0001315,2]
[336335046,1724778678038,-500.0,0.0001315,2]
[336335047,1724778678048,-500.0,0.0001315,2]
[336335048,1724778678058,-500.0,0.0001315,2]
[336335049,1724778678068,-253.356267,0.0001315,2]
[336335050,1724778678078,-540.30027245,0.0001315,2]
[336335051,1724778678088,-394.43498251,0.0001315,2]
[336335052,1724778678098,-500.0,0.0001315,2]
[336335053,1724778678108,-500.0,0.0001315,2]
[336335054,1724778678118,-500.0,0.0001315,2]
[336335055,1724778678128,-500.0,0.0001315,2]
[336335056,1724778678139,-500.0,0.0001315,2]
[336335057,1724778678150,-500.0,0.0001315,2]
[336335058,1724778678160,-924.852967,0.0001315,2]
[336335059,1724778678170,-773.4,0.0001315,2]
[336335060,1724778678180,-213.462844,0.0001315,2]
[336335061,1724778678191,-924.852967,0.0001315,2]
[336335062,1724778678202,-500.0,0.0001315,2]
[336335063,1724778678211,-500.0,0.0001315,2]
[336335064,1724778678221,-500.0,0.0001315,2]
[336335065,1724778678231,-213.462844,0.0001315,2]
[336335066,1724778678240,-500.0,0.0001315,2]
[336335067,1724778678249,-500.0,0.0001315,2]
[336335068,1724778678259,-500.0,0.0001315,2]
[336335069,1724778678272,-500.0,0.0001315,2]
[336335070,1724778678281,-552.32,0.0001315,2]
[336335071,1724778678292,-563.4,0.0001315,2]
[336335072,1724778678301,-500.0,0.0001315,2]
[336335073,1724778678312,-669.12,0.0001315,2]
[336335074,1724778678322,-500.0,0.0001315,2]
[336335075,1724778678333,-500.0,0.0001315,2]
[336335076,1724778678343,-276.303727,0.0001315,2]
[336335077,1724778678354,-500.0,0.0001315,2]
[336335078,1724778678364,-500.0,0.0001315,2]
[336335079,1724778678374,-276.303727,0.0001315,2]
[336335080,1724778678383,-500.0,0.0001315,2]
[336335081,1724778678396,-500.0,0.0001315,2]
[336335082,1724778678406,-500.0,0.0001315,2]
[336335083,1724778678415,-600.0,0.00013193,2]
[336335084,1724778678425,-600.0,0.00013193,2]
[336335085,1724778678436,-330.404938,0.00013224,2]
[336335086,1724778678447,-352.279876,0.00013224,2]
[336335087,1724778678457,-600.0,0.00013237,2]
[336335088,1724778678467,-600.0,0.00013237,2]
[336335089,1724778678476,-600.0,0.00013237,2]
[336335090,1724778678487,-600.0,0.00013237,2]
[336335091,1724778678496,-202.775793,0.00013256,2]
[336335092,1724778678507,-202.775793,0.00013256,2]
[336335093,1724778678518,-250.003809,0.00013256,2]
[336335094,1724778678527,-250.003809,0.00013256,2]
[336335095,1724778678537,-600.0,0.00013256,2]
[336335096,1724778678546,-600.0,0.00013256,2]
[336335097,1724778678555,-600.0,0.00013256,2]
[336335098,1724778678564,-600.0,0.00013256,2]
[336335099,1724778678573,-602.16157789,0.00013257,2]
[336335100,1724778678583,-600.0,0.00013257,2]
[336335101,1724778678592,-600.0,0.00013257,2]
[336335102,1724778678601,-600.0,0.00013257,2]
[336335103,1724778678610,-1500.0,0.00013319,2]
[336335104,1724778678619,-151.0,0.00013336,2]
[336335105,1724778678629,-151.0,0.00013336,2]
[336335106,1724778678638,-151.0,0.00013336,2]
[336335107,1724778678648,-151.0,0.00013336,2]
[336335108,1724778678659,-330.404938,0.00013385,2]
[336335109,1724778678669,-352.279876,0.00013385,2]
[336335110,1724778678678,-600.0,0.00013413,2]
[336335111,1724778678688,-500.0,0.00013423,2]
[336335112,1724778678697,-554.65,0.00013423,2]
[336335113,1724778678706,-500.0,0.00013423,2]
[336335114,1724778678716,-1416.19,0.00013423,2]
[336335115,1724778678725,-500.0,0.00013423,2]
[336335116,1724778678735,-500.0,0.00013423,2]
[336335117,1724778678745,-1498.44,0.00013423,2]
[336335118,1724778678754,-500.0,0.00013423,2]
[336335119,1724778678763,-500.0,0.00013423,2]
[336335120,1724778678772,-500.0,0.00013423,2]
[336335121,1724778678782,-500.0,0.00013423,2]
[336335122,1724778678792,-1373.05,0.00013423,2]
[336335123,1724778678801,-1354.84,0.00013423,2]
[336335124,1724778678811,-500.0,0.00013424,2]
[336335125,1724778678820,-151.0,0.00013424,2]
[336335126,1724778678829,-500.0,0.00013424,2]
[336335127,1724778678839,-230.25327145,0.00013424,2]
[336335128,1724778678848,-541.93,0.00013424,2]
[336335129,1724778678858,-500.0,0.00013424,2]
[336335130,1724778678868,-500.0,0.00013424,2]
[336335131,1724778678878,-500.0,0.00013424,2]
[336335132,1724778678888,-500.0,0.00013424,2]
[336335133,1724778678897,-500.0,0.00013424,2]
[336335134,1724778678906,-500.0,0.00013424,2]
[336335135,1724778678915,-500.0,0.00013424,2]
[336335136,1724778678924,-500.0,0.00013424,2]
[336335137,1724778678933,-500.0,0.00013424,2]
[336335138,1724778678942,-601.05,0.00013424,2]
[336335139,1724778678951,-648.24,0.00013424,2]
[336335140,1724778678961,-500.0,0.00013424,2]
[336335141,1724778678970,-500.0,0.00013424,2]
[336335142,1724778678980,-151.0,0.00013424,2]
[336335143,1724778678990,-500.0,0.00013424,2]
[336335144,1724778678999,-500.0,0.00013424,2]
[336335145,1724778679008,-500.0,0.00013424,2]
[336335146,1724778679018,-151.0,0.00013424,2]
[336335147,1724778679028,-500.0,0.00013424,2]
[336335148,1724778679038,-500.0,0.00013424,2]
[336335149,1724778679048,-417.592714,0.00013424,2]
[336335150,1724778679057,-417.592714,0.00013424,2]
[336335151,1724778679069,-500.0,0.00013424,2]
[336335152,1724778679080,-611.08,0.00013424,2]
[336335153,1724778679091,-500.0,0.00013424,2]
[336335154,1724778679102,-195.41121981,0.00013424,2]
[336335155,1724778679112,-500.0,0.00013424,2]
[336335156,1724778679123,-500.0,0.00013424,2]
[336335157,1724778679133,-348.64623637,0.00013424,2]
[336335158,1724778679143,-528.18,0.00013424,2]
[336335159,1724778679154,-500.0,0.00013424,2]
[336335160,1724778679164,-416.55,0.00013424,2]
[336335161,1724778679174,-500.0,0.00013424,2]
[336335162,1724778679183,-512.95338622,0.00013424,2]
[336335163,1724778679193,-500.0,0.00013424,2]
[336335164,1724778679203,-500.0,0.00013424,2]
[336335165,1724778679212,-151.0,0.00013424,2]
[336335166,1724778679222,-500.0,0.00013424,2]
[336335167,1724778679231,-500.0,0.00013424,2]